[Event "Late-Titled-Tuesday-Blitz-May-28-2024"]
[Site "Chess.com"]
[Date "2024.05.28"]
[Round "5"]
[White "boguszp"]
[Black "topce"]
[Result "0-1"]
[WhiteElo "2030"]
[BlackElo "2390"]
[TimeControl "180+1"]
[EndTime "14:56:29 PDT"]
[Termination "topce won on time"]

1. d4 {[%clk 0:01:44]} 1... Nf6 {[%clk 0:02:43.1]} 2. Nf3 {[%clk 0:01:43.7]}
2... e6 {[%clk 0:02:40.7]} 3. Bf4 {[%clk 0:01:44.2]} 3... b6 {[%clk 0:02:37.1]}
4. h3 {[%clk 0:01:44.7]} 4... Bb7 {[%clk 0:02:37.2]} 5. e3 {[%clk 0:01:45.4]}
5... Ne4 {[%clk 0:02:34.1]} 6. Be2 {[%clk 0:01:45.6]} 6... f5 {[%clk 0:02:33.2]}
7. O-O {[%clk 0:01:45.7]} 7... Be7 {[%clk 0:02:32.7]} 8. Nbd2 {[%clk 0:01:46.3]}
8... O-O {[%clk 0:02:31.5]} 9. Nxe4 {[%clk 0:01:46.2]} 9... fxe4 {[%clk
0:02:22.2]} 10. Nd2 {[%clk 0:01:46.1]} 10... c5 {[%clk 0:02:22.1]} 11. c3 {[%clk
0:01:45.9]} 11... d5 {[%clk 0:02:18.8]} 12. Qc2 {[%clk 0:01:45.6]} 12... Nc6
{[%clk 0:02:06.3]} 13. f3 {[%clk 0:01:44.1]} 13... Rc8 {[%clk 0:01:59.2]} 14.
fxe4 {[%clk 0:01:42.8]} 14... cxd4 {[%clk 0:01:58.9]} 15. exd5 {[%clk
0:01:31.2]} 15... Qxd5 {[%clk 0:01:38.6]} 16. Bf3 {[%clk 0:01:27.2]} 16... Qd7
{[%clk 0:01:37.5]} 17. Bxc6 {[%clk 0:01:25.2]} 17... Qxc6 {[%clk 0:01:37]} 18.
Nf3 {[%clk 0:01:14.6]} 18... dxe3 {[%clk 0:01:29]} 19. Bxe3 {[%clk 0:01:12.9]}
19... Bc5 {[%clk 0:01:19.6]} 20. Bxc5 {[%clk 0:01:09.4]} 20... Qxc5+ {[%clk
0:01:20.5]} 21. Kh1 {[%clk 0:01:08.8]} 21... Qh5 {[%clk 0:01:11.5]} 22. Qe2
{[%clk 0:00:54.1]} 22... Rce8 {[%clk 0:01:09.5]} 23. Rf2 {[%clk 0:00:46.5]}
23... e5 {[%clk 0:01:08.7]} 24. Raf1 {[%clk 0:00:45.4]} 24... e4 {[%clk
0:01:04.4]} 25. Nd4 {[%clk 0:00:44.9]} 25... Qxe2 {[%clk 0:00:54.1]} 26. Rxf8+
{[%clk 0:00:41.5]} 26... Rxf8 {[%clk 0:00:51]} 27. Rxf8+ {[%clk 0:00:41.7]}
27... Kxf8 {[%clk 0:00:49.8]} 28. Nxe2 {[%clk 0:00:42.2]} 28... Ke7 {[%clk
0:00:44.6]} 29. Kg1 {[%clk 0:00:38.7]} 29... Ke6 {[%clk 0:00:44.8]} 30. Kf2
{[%clk 0:00:38.4]} 30... Ke5 {[%clk 0:00:45.1]} 31. Ke3 {[%clk 0:00:38.3]} 31...
Ba6 {[%clk 0:00:43.4]} 32. Ng3 {[%clk 0:00:35.1]} 32... Bd3 {[%clk 0:00:41.4]}
33. Nh1 {[%clk 0:00:30.4]} 33... Bb1 {[%clk 0:00:39.4]} 34. a3 {[%clk 0:00:29]}
34... a5 {[%clk 0:00:38.2]} 35. Nf2 {[%clk 0:00:29.3]} 35... a4 {[%clk
0:00:36.5]} 36. g3 {[%clk 0:00:29.2]} 36... Kd5 {[%clk 0:00:35.9]} 37. Ng4
{[%clk 0:00:24.8]} 37... Kc4 {[%clk 0:00:32.6]} 38. Kd2 {[%clk 0:00:24.1]} 38...
Kb3 {[%clk 0:00:29.4]} 39. Kc1 {[%clk 0:00:23.9]} 39... Bd3 {[%clk 0:00:25.5]}
40. Ne3 {[%clk 0:00:23]} 40... b5 {[%clk 0:00:23.9]} 41. h4 {[%clk 0:00:19.2]}
41... h5 {[%clk 0:00:20]} 42. Nf5 {[%clk 0:00:11]} 42... g6 {[%clk 0:00:19.5]}
43. Nd4+ {[%clk 0:00:09]} 43... Kc4 {[%clk 0:00:19.8]} 44. Kd2 {[%clk
0:00:08.9]} 44... Kd5 {[%clk 0:00:19.1]} 45. Ke3 {[%clk 0:00:08.3]} 45... Ke5
{[%clk 0:00:19.5]} 46. Nc6+ {[%clk 0:00:07.1]} 46... Kf5 {[%clk 0:00:19.5]} 47.
Nd4+ {[%clk 0:00:04.5]} 47... Kg4 {[%clk 0:00:20.4]} 48. Kf2 {[%clk 0:00:04.2]}
48... g5 {[%clk 0:00:19.9]} 49. Ne6 {[%clk 0:00:01]} 49... gxh4 {[%clk
0:00:19.7]} 50. gxh4 {[%clk 0:00:00.8]} 50... Kxh4 {[%clk 0:00:20]} 0-1

[Event "Late-Titled-Tuesday-Blitz-May-28-2024"]
[Site "Chess.com"]
[Date "2024.05.28"]
[Round "5"]
[White "DucksParadise"]
[Black "Quattroporte300"]
[Result "1-0"]
[WhiteElo "2564"]
[BlackElo "2405"]
[TimeControl "180+1"]
[EndTime "14:56:30 PDT"]
[Termination "DucksParadise won by checkmate"]

1. d4 {[%clk 0:03:00.9]} 1... Nf6 {[%clk 0:02:57.9]} 2. Nf3 {[%clk 0:03:00.2]}
2... g6 {[%clk 0:02:55.3]} 3. Bf4 {[%clk 0:02:52.9]} 3... Bg7 {[%clk 0:02:55.6]}
4. Nc3 {[%clk 0:02:44.8]} 4... d5 {[%clk 0:02:49.3]} 5. Nb5 {[%clk 0:02:44.2]}
5... Na6 {[%clk 0:02:49.3]} 6. e3 {[%clk 0:02:38]} 6... O-O {[%clk 0:02:49.3]}
7. h3 {[%clk 0:02:34.9]} 7... c6 {[%clk 0:02:48.8]} 8. Nc3 {[%clk 0:02:22.3]}
8... Nc7 {[%clk 0:02:48.9]} 9. Be2 {[%clk 0:02:21.6]} 9... Ne4 {[%clk
0:02:43.7]} 10. Nxe4 {[%clk 0:02:18.1]} 10... dxe4 {[%clk 0:02:43.6]} 11. Nd2
{[%clk 0:02:17.2]} 11... f5 {[%clk 0:02:34.7]} 12. O-O {[%clk 0:02:14.7]} 12...
Be6 {[%clk 0:02:25.5]} 13. c3 {[%clk 0:01:56.4]} 13... Qd7 {[%clk 0:02:20.5]}
14. Nc4 {[%clk 0:01:51.5]} 14... Nd5 {[%clk 0:02:16.2]} 15. Ne5 {[%clk
0:01:50.8]} 15... Bxe5 {[%clk 0:02:00.7]} 16. Bxe5 {[%clk 0:01:47.3]} 16... b5
{[%clk 0:01:54.8]} 17. Qd2 {[%clk 0:01:35.6]} 17... g5 {[%clk 0:01:46.6]} 18. f3
{[%clk 0:01:19.2]} 18... f4 {[%clk 0:01:33.6]} 19. fxe4 {[%clk 0:01:06]} 19...
Nxe3 {[%clk 0:01:31.8]} 20. Rf3 {[%clk 0:01:00.6]} 20... h6 {[%clk 0:01:12.1]}
21. Rxe3 {[%clk 0:00:56]} 21... fxe3 {[%clk 0:01:11.7]} 22. Qxe3 {[%clk
0:00:56.9]} 22... Qe8 {[%clk 0:01:02.3]} 23. h4 {[%clk 0:00:33.5]} 23... Qg6
{[%clk 0:01:00.4]} 24. d5 {[%clk 0:00:20.5]} 24... cxd5 {[%clk 0:00:44.1]} 25.
exd5 {[%clk 0:00:21.4]} 25... Bxd5 {[%clk 0:00:41.9]} 26. Bd3 {[%clk 0:00:21.3]}
26... Qb6 {[%clk 0:00:28.1]} 27. Bd4 {[%clk 0:00:19.8]} 27... Qe6 {[%clk
0:00:28.5]} 28. Qg3 {[%clk 0:00:15.9]} 28... g4 {[%clk 0:00:21.7]} 29. Re1
{[%clk 0:00:15.6]} 29... Qd6 {[%clk 0:00:16.2]} 30. Qxg4+ {[%clk 0:00:14.6]}
30... Kf7 {[%clk 0:00:14.2]} 31. Qg7+ {[%clk 0:00:03.9]} 31... Ke8 {[%clk
0:00:14.6]} 32. Be5 {[%clk 0:00:03.3]} 32... Qc6 {[%clk 0:00:10.4]} 33. Bg6+
{[%clk 0:00:02.8]} 33... Kd7 {[%clk 0:00:08.8]} 34. Bd4 {[%clk 0:00:03.1]} 34...
Rg8 {[%clk 0:00:05.8]} 35. Qxe7+ {[%clk 0:00:02.8]} 35... Kc8 {[%clk 0:00:05.7]}
36. Bf5+ {[%clk 0:00:02.9]} 36... Kb8 {[%clk 0:00:05.5]} 37. Be5+ {[%clk
0:00:03.3]} 37... Qd6 {[%clk 0:00:02.9]} 38. Qxd6+ {[%clk 0:00:03.6]} 38... Kb7
{[%clk 0:00:01.7]} 39. Qxd5+ {[%clk 0:00:04.5]} 39... Ka6 {[%clk 0:00:02.2]} 40.
Qc6+ {[%clk 0:00:04.8]} 40... Ka5 {[%clk 0:00:02.8]} 41. Bc7+ {[%clk 0:00:04.7]}
41... Ka4 {[%clk 0:00:03.4]} 42. Qc5 {[%clk 0:00:04.8]} 42... a6 {[%clk
0:00:01]} 43. Qb4# {[%clk 0:00:05]} 1-0

[Event "Late-Titled-Tuesday-Blitz-May-28-2024"]
[Site "Chess.com"]
[Date "2024.05.28"]
[Round "5"]
[White "DonJuanEGenaro"]
[Black "janhelmer03"]
[Result "1-0"]
[WhiteElo "2049"]
[BlackElo "2384"]
[TimeControl "180+1"]
[EndTime "14:56:40 PDT"]
[Termination "DonJuanEGenaro won on time"]

1. d4 {[%clk 0:02:59.6]} 1... d5 {[%clk 0:02:55.5]} 2. Nf3 {[%clk 0:02:59.1]}
2... Nf6 {[%clk 0:02:53.6]} 3. c4 {[%clk 0:02:58.9]} 3... e6 {[%clk 0:02:50.8]}
4. Nc3 {[%clk 0:02:57.7]} 4... Be7 {[%clk 0:02:48.4]} 5. g3 {[%clk 0:02:55.2]}
5... O-O {[%clk 0:02:46.1]} 6. Bg2 {[%clk 0:02:55.1]} 6... c6 {[%clk 0:02:44.1]}
7. O-O {[%clk 0:02:53.1]} 7... dxc4 {[%clk 0:02:42.4]} 8. Ne5 {[%clk 0:02:52.6]}
8... Nd5 {[%clk 0:02:21.8]} 9. Nxc4 {[%clk 0:02:46.8]} 9... Nxc3 {[%clk
0:02:14.3]} 10. bxc3 {[%clk 0:02:45.3]} 10... Nd7 {[%clk 0:02:08.9]} 11. e4
{[%clk 0:02:42.7]} 11... Nb6 {[%clk 0:02:05.3]} 12. Ne3 {[%clk 0:02:33.3]} 12...
c5 {[%clk 0:01:36.8]} 13. a4 {[%clk 0:02:18.2]} 13... cxd4 {[%clk 0:01:32]} 14.
cxd4 {[%clk 0:02:16.3]} 14... a5 {[%clk 0:01:16.2]} 15. Bb2 {[%clk 0:02:07.8]}
15... Bd7 {[%clk 0:01:15.7]} 16. Qb3 {[%clk 0:01:53.5]} 16... Bb4 {[%clk
0:01:12.9]} 17. Nc2 {[%clk 0:01:42.1]} 17... Qe7 {[%clk 0:00:53.9]} 18. Ne3
{[%clk 0:01:34.5]} 18... Qe8 {[%clk 0:00:52.1]} 19. d5 {[%clk 0:01:03.7]} 19...
Bxa4 {[%clk 0:00:51.3]} 20. Qd3 {[%clk 0:00:59.6]} 20... Bb5 {[%clk 0:00:51.1]}
21. Qd4 {[%clk 0:00:59.2]} 21... e5 {[%clk 0:00:30.6]} 22. Qxb6 {[%clk
0:00:58.7]} 22... Bxf1 {[%clk 0:00:30.3]} 23. Bxf1 {[%clk 0:00:55.9]} 23... Qe7
{[%clk 0:00:25.6]} 24. Nf5 {[%clk 0:00:51.8]} 24... Qc5 {[%clk 0:00:25.3]} 25.
Qxc5 {[%clk 0:00:49.9]} 25... Bxc5 {[%clk 0:00:26.2]} 26. Bxe5 {[%clk
0:00:48.9]} 26... Rfe8 {[%clk 0:00:21.1]} 27. Bd6 {[%clk 0:00:42.8]} 27... Bb6
{[%clk 0:00:09.2]} 28. Ne7+ {[%clk 0:00:39.7]} 28... Kh8 {[%clk 0:00:09]} 29.
Rc1 {[%clk 0:00:34.9]} 29... a4 {[%clk 0:00:08.4]} 30. Bb5 {[%clk 0:00:33]}
30... Red8 {[%clk 0:00:06.7]} 31. Be5 {[%clk 0:00:31.8]} 31... a3 {[%clk
0:00:06.3]} 32. Ba1 {[%clk 0:00:29.6]} 32... a2 {[%clk 0:00:05.4]} 33. e5 {[%clk
0:00:27.4]} 33... Ra5 {[%clk 0:00:04.4]} 34. Bd3 {[%clk 0:00:15.4]} 34... h6
{[%clk 0:00:01.3]} 35. d6 {[%clk 0:00:13.8]} 35... Ra3 {[%clk 0:00:01.9]} 36.
Bc4 {[%clk 0:00:13]} 36... Ra5 {[%clk 0:00:01.3]} 37. Rc2 {[%clk 0:00:11.4]}
37... Rf8 {[%clk 0:00:01.8]} 38. Rxa2 {[%clk 0:00:10.7]} 38... Rxa2 {[%clk
0:00:02.4]} 39. Bxa2 {[%clk 0:00:10.4]} 39... Ra8 {[%clk 0:00:03.3]} 40. Bxf7
{[%clk 0:00:05.4]} 40... Rxa1+ {[%clk 0:00:03.3]} 41. Kg2 {[%clk 0:00:05.5]}
41... Ra2 {[%clk 0:00:03.8]} 42. e6 {[%clk 0:00:04.8]} 42... Rxf2+ {[%clk
0:00:03.5]} 43. Kh3 {[%clk 0:00:04.8]} 43... Rf6 {[%clk 0:00:03.9]} 44. Ng6+
{[%clk 0:00:03.7]} 44... Rxg6 {[%clk 0:00:02.8]} 45. Bxg6 {[%clk 0:00:02.5]}
45... Bc5 {[%clk 0:00:03.3]} 46. e7 {[%clk 0:00:02.4]} 1-0

[Event "Late-Titled-Tuesday-Blitz-May-28-2024"]
[Site "Chess.com"]
[Date "2024.05.28"]
[Round "5"]
[White "nitpicker"]
[Black "VirtualCoach"]
[Result "0-1"]
[WhiteElo "2299"]
[BlackElo "2199"]
[TimeControl "180+1"]
[EndTime "14:56:43 PDT"]
[Termination "VirtualCoach won by resignation"]

1. d4 {[%clk 0:03:00.9]} 1... Nf6 {[%clk 0:02:59.6]} 2. c4 {[%clk 0:03:00.8]}
2... e6 {[%clk 0:02:59.3]} 3. g3 {[%clk 0:03:00.3]} 3... d5 {[%clk 0:02:55.6]}
4. Nf3 {[%clk 0:02:58.8]} 4... Bb4+ {[%clk 0:02:53.1]} 5. Bd2 {[%clk 0:02:56.8]}
5... Bd6 {[%clk 0:02:51.9]} 6. Qc2 {[%clk 0:02:56.5]} 6... c6 {[%clk 0:02:51.4]}
7. Bg2 {[%clk 0:02:55.9]} 7... Nbd7 {[%clk 0:02:50.6]} 8. Bf4 {[%clk 0:02:49.6]}
8... Qc7 {[%clk 0:02:40.9]} 9. e3 {[%clk 0:02:42.8]} 9... O-O {[%clk 0:02:38.2]}
10. O-O {[%clk 0:02:33.8]} 10... Ne4 {[%clk 0:02:36.4]} 11. Nbd2 {[%clk
0:02:24.2]} 11... Ndf6 {[%clk 0:02:28.9]} 12. Rac1 {[%clk 0:02:07.4]} 12... h6
{[%clk 0:02:21.9]} 13. c5 {[%clk 0:02:03.7]} 13... Bxf4 {[%clk 0:02:20.5]} 14.
gxf4 {[%clk 0:02:04.6]} 14... Nxd2 {[%clk 0:02:16.7]} 15. Nxd2 {[%clk 0:02:00]}
15... Bd7 {[%clk 0:02:08.6]} 16. Kh1 {[%clk 0:01:59]} 16... b6 {[%clk 0:02:06]}
17. Nb3 {[%clk 0:01:51.8]} 17... Rab8 {[%clk 0:02:02.4]} 18. Bf3 {[%clk
0:01:45.2]} 18... a5 {[%clk 0:01:58.2]} 19. a4 {[%clk 0:01:08.9]} 19... b5
{[%clk 0:01:53.5]} 20. axb5 {[%clk 0:00:58.4]} 20... Rxb5 {[%clk 0:01:51.7]} 21.
Nd2 {[%clk 0:00:54.9]} 21... Rfb8 {[%clk 0:01:47.2]} 22. b3 {[%clk 0:00:54.9]}
22... Qb7 {[%clk 0:01:38.7]} 23. Rg1 {[%clk 0:00:50.9]} 23... Rb4 {[%clk
0:01:17.8]} 24. Rg3 {[%clk 0:00:47.4]} 24... Kf8 {[%clk 0:01:11.4]} 25. Rcg1
{[%clk 0:00:46.4]} 25... Ne8 {[%clk 0:01:10.7]} 26. Qh7 {[%clk 0:00:44.6]} 26...
Ke7 {[%clk 0:01:03.8]} 27. Rxg7 {[%clk 0:00:35.3]} 27... Nxg7 {[%clk 0:01:01]}
28. Rxg7 {[%clk 0:00:35.9]} 28... Rf8 {[%clk 0:00:56.3]} 29. Bh5 {[%clk
0:00:35.8]} 29... Be8 {[%clk 0:00:49.2]} 30. Qxh6 {[%clk 0:00:32.3]} 30... Kd8
{[%clk 0:00:40.2]} 31. Rg3 {[%clk 0:00:19.9]} 31... Qe7 {[%clk 0:00:36.3]} 32.
Be2 {[%clk 0:00:14.1]} 32... a4 {[%clk 0:00:34.4]} 33. bxa4 {[%clk 0:00:13.3]}
33... Rb2 {[%clk 0:00:29.9]} 34. e4 {[%clk 0:00:06.3]} 34... Rxd2 {[%clk
0:00:26.8]} 35. Bf3 {[%clk 0:00:06.2]} 35... Rxd4 {[%clk 0:00:24.1]} 36. a5
{[%clk 0:00:04.4]} 36... Ra4 {[%clk 0:00:22.5]} 37. Qg7 {[%clk 0:00:04.4]} 37...
Rxa5 {[%clk 0:00:20.6]} 38. Rg5 {[%clk 0:00:03.8]} 38... Ra1+ {[%clk 0:00:19.4]}
39. Kg2 {[%clk 0:00:03.2]} 39... f6 {[%clk 0:00:18.8]} 40. Qxe7+ {[%clk
0:00:03]} 40... Kxe7 {[%clk 0:00:19]} 41. Rg7+ {[%clk 0:00:03.5]} 41... Rf7
{[%clk 0:00:19.5]} 42. Rg8 {[%clk 0:00:03.3]} 42... Re1 {[%clk 0:00:17.8]} 43.
h4 {[%clk 0:00:03.3]} 43... dxe4 {[%clk 0:00:17.5]} 44. Bg4 {[%clk 0:00:03.7]}
44... f5 {[%clk 0:00:17.4]} 45. Bh3 {[%clk 0:00:03.8]} 45... Rc1 {[%clk
0:00:14.7]} 46. h5 {[%clk 0:00:03]} 46... Rxc5 {[%clk 0:00:14.4]} 47. h6 {[%clk
0:00:01.7]} 47... Rh7 {[%clk 0:00:14.6]} 48. Rg7+ {[%clk 0:00:01.4]} 48... Rxg7+
{[%clk 0:00:14.6]} 49. hxg7 {[%clk 0:00:02.3]} 0-1

[Event "Late-Titled-Tuesday-Blitz-May-28-2024"]
[Site "Chess.com"]
[Date "2024.05.28"]
[Round "5"]
[White "RantomOpening"]
[Black "maracayo"]
[Result "1-0"]
[WhiteElo "2572"]
[BlackElo "2424"]
[TimeControl "180+1"]
[EndTime "14:56:47 PDT"]
[Termination "RantomOpening won by resignation"]

1. c4 {[%clk 0:03:00.1]} 1... d6 {[%clk 0:03:00]} 2. Nf3 {[%clk 0:03:00]} 2...
Nf6 {[%clk 0:03:00.3]} 3. Nc3 {[%clk 0:03:00.1]} 3... e5 {[%clk 0:02:58.8]} 4.
e4 {[%clk 0:02:59.7]} 4... Be7 {[%clk 0:02:58]} 5. d4 {[%clk 0:02:59.7]} 5...
Nbd7 {[%clk 0:02:57.8]} 6. Be2 {[%clk 0:02:59.9]} 6... O-O {[%clk 0:02:57.8]} 7.
O-O {[%clk 0:03:00.3]} 7... exd4 {[%clk 0:02:57.7]} 8. Nxd4 {[%clk 0:03:01.2]}
8... Re8 {[%clk 0:02:57.1]} 9. Be3 {[%clk 0:02:59.8]} 9... h6 {[%clk 0:02:56.4]}
10. Qc2 {[%clk 0:02:59.3]} 10... Bf8 {[%clk 0:02:54.1]} 11. f3 {[%clk
0:02:58.1]} 11... c6 {[%clk 0:02:53.9]} 12. Bf2 {[%clk 0:02:58.6]} 12... Qc7
{[%clk 0:02:53.3]} 13. Rfe1 {[%clk 0:02:55.9]} 13... Ne5 {[%clk 0:02:45.8]} 14.
Rad1 {[%clk 0:02:53]} 14... a6 {[%clk 0:02:45]} 15. b3 {[%clk 0:02:51]} 15... b5
{[%clk 0:02:42]} 16. cxb5 {[%clk 0:02:43.5]} 16... cxb5 {[%clk 0:02:42.9]} 17.
Qb2 {[%clk 0:02:41.7]} 17... Bb7 {[%clk 0:02:38.9]} 18. Rc1 {[%clk 0:02:35.2]}
18... Qd7 {[%clk 0:02:34]} 19. a4 {[%clk 0:02:30.3]} 19... b4 {[%clk 0:02:31]}
20. Na2 {[%clk 0:02:28.4]} 20... d5 {[%clk 0:02:20.7]} 21. exd5 {[%clk
0:02:25.9]} 21... Nxd5 {[%clk 0:02:16.6]} 22. Red1 {[%clk 0:02:24.8]} 22... Rac8
{[%clk 0:01:57.5]} 23. Rxc8 {[%clk 0:02:22.9]} 23... Qxc8 {[%clk 0:01:52.6]} 24.
Rc1 {[%clk 0:02:14]} 24... Qd7 {[%clk 0:01:34.3]} 25. Bf1 {[%clk 0:02:04.7]}
25... Nf4 {[%clk 0:01:31.3]} 26. Rd1 {[%clk 0:02:00.3]} 26... Qc8 {[%clk
0:01:13]} 27. Qd2 {[%clk 0:01:55.4]} 27... Nd5 {[%clk 0:01:05.9]} 28. Ne2 {[%clk
0:01:28.2]} 28... Qf5 {[%clk 0:00:56.7]} 29. Ng3 {[%clk 0:01:24.6]} 29... Qg6
{[%clk 0:00:48.2]} 30. Kh1 {[%clk 0:01:05.6]} 30... h5 {[%clk 0:00:47.4]} 31.
Ne4 {[%clk 0:01:05.7]} 31... Qf5 {[%clk 0:00:38.7]} 32. Ng3 {[%clk 0:01:00]}
32... Qg6 {[%clk 0:00:38.3]} 33. Ne4 {[%clk 0:00:59.4]} 33... Qf5 {[%clk
0:00:37.6]} 34. Nc1 {[%clk 0:00:55.5]} 34... Nf4 {[%clk 0:00:30.8]} 35. Ng3
{[%clk 0:00:53.7]} 35... Qg5 {[%clk 0:00:28.8]} 36. Be3 {[%clk 0:00:47]} 36...
Neg6 {[%clk 0:00:28.2]} 37. Nge2 {[%clk 0:00:41.2]} 37... Rxe3 {[%clk
0:00:17.9]} 38. Qxe3 {[%clk 0:00:40.4]} 38... h4 {[%clk 0:00:18.7]} 39. g3
{[%clk 0:00:35.7]} 39... Nxe2 {[%clk 0:00:16]} 40. Qxg5 {[%clk 0:00:34.2]} 40...
Bxf3+ {[%clk 0:00:15.3]} 41. Bg2 {[%clk 0:00:34.6]} 41... Nxg3+ {[%clk
0:00:09.2]} 42. hxg3 {[%clk 0:00:33.6]} 42... Bxd1 {[%clk 0:00:10.1]} 43. gxh4
{[%clk 0:00:29.1]} 43... Be7 {[%clk 0:00:07.7]} 44. Qd5 {[%clk 0:00:28.5]} 44...
Bg4 {[%clk 0:00:07.2]} 45. h5 {[%clk 0:00:23.7]} 45... Nf8 {[%clk 0:00:07.6]}
46. Nd3 {[%clk 0:00:20.1]} 46... Be6 {[%clk 0:00:07.6]} 47. Qa5 {[%clk
0:00:19.7]} 47... Bxb3 {[%clk 0:00:07]} 48. Nxb4 {[%clk 0:00:19.8]} 48... Bc4
{[%clk 0:00:05.5]} 49. Nxa6 {[%clk 0:00:19.7]} 49... Ne6 {[%clk 0:00:04.8]} 50.
Nc7 {[%clk 0:00:17.9]} 50... Nf4 {[%clk 0:00:04.4]} 51. Qa8+ {[%clk 0:00:16.9]}
51... Kh7 {[%clk 0:00:03.5]} 52. Qe4+ {[%clk 0:00:17.2]} 1-0

[Event "Late-Titled-Tuesday-Blitz-May-28-2024"]
[Site "Chess.com"]
[Date "2024.05.28"]
[Round "5"]
[White "Grebnev_A"]
[Black "sergiochess83"]
[Result "1-0"]
[WhiteElo "2663"]
[BlackElo "2871"]
[TimeControl "180+1"]
[EndTime "14:56:48 PDT"]
[Termination "Grebnev_A won by resignation"]

1. Nf3 {[%clk 0:03:00.9]} 1... d5 {[%clk 0:02:58]} 2. e3 {[%clk 0:03:00.2]} 2...
Nf6 {[%clk 0:02:55.3]} 3. c4 {[%clk 0:03:00.2]} 3... e6 {[%clk 0:02:50.1]} 4. b3
{[%clk 0:03:00.1]} 4... Bd6 {[%clk 0:02:46.9]} 5. Bb2 {[%clk 0:02:59.8]} 5...
Qe7 {[%clk 0:02:37.4]} 6. d4 {[%clk 0:02:55.8]} 6... c6 {[%clk 0:02:28.4]} 7.
Nc3 {[%clk 0:02:51.3]} 7... Nbd7 {[%clk 0:02:25.4]} 8. Be2 {[%clk 0:02:50.9]}
8... O-O {[%clk 0:02:24.9]} 9. O-O {[%clk 0:02:49.7]} 9... b6 {[%clk 0:02:23.3]}
10. Qc2 {[%clk 0:02:49.5]} 10... Bb7 {[%clk 0:02:23]} 11. Rfe1 {[%clk
0:02:49.9]} 11... Rac8 {[%clk 0:02:19.8]} 12. e4 {[%clk 0:02:49.4]} 12... dxe4
{[%clk 0:02:16.8]} 13. Nxe4 {[%clk 0:02:50.3]} 13... Nxe4 {[%clk 0:02:17.3]} 14.
Qxe4 {[%clk 0:02:50.2]} 14... Bb4 {[%clk 0:02:17.9]} 15. Rec1 {[%clk 0:02:44.7]}
15... Nf6 {[%clk 0:02:08.4]} 16. Qh4 {[%clk 0:02:43.3]} 16... Ba3 {[%clk
0:02:04.3]} 17. Bxa3 {[%clk 0:02:37.8]} 17... Qxa3 {[%clk 0:02:05.2]} 18. c5
{[%clk 0:02:18.2]} 18... Ba6 {[%clk 0:02:04.9]} 19. Bxa6 {[%clk 0:02:16.4]}
19... Qxa6 {[%clk 0:02:05.7]} 20. Ne5 {[%clk 0:02:17.1]} 20... Rfd8 {[%clk
0:01:59.2]} 21. Rc2 {[%clk 0:02:15.5]} 21... b5 {[%clk 0:01:17]} 22. h3 {[%clk
0:02:13.1]} 22... h6 {[%clk 0:01:15.6]} 23. Re1 {[%clk 0:02:12.6]} 23... Rd5
{[%clk 0:01:13.7]} 24. Rc3 {[%clk 0:01:53.9]} 24... Qxa2 {[%clk 0:01:00.3]} 25.
Rg3 {[%clk 0:01:52.8]} 25... Kf8 {[%clk 0:00:56.5]} 26. Rxg7 {[%clk 0:01:35.2]}
26... Kxg7 {[%clk 0:00:51.6]} 27. Re3 {[%clk 0:01:35.4]} 27... Rxe5 {[%clk
0:00:34.5]} 28. dxe5 {[%clk 0:01:33.4]} 28... Nh7 {[%clk 0:00:34.3]} 29. Rg3+
{[%clk 0:01:27.9]} 29... Kh8 {[%clk 0:00:34.4]} 30. Qf4 {[%clk 0:01:13]} 30...
Qb1+ {[%clk 0:00:31.6]} 31. Kh2 {[%clk 0:01:11.7]} 31... Qf5 {[%clk 0:00:32.3]}
32. Qd4 {[%clk 0:01:04.5]} 32... Ng5 {[%clk 0:00:21.2]} 33. f3 {[%clk
0:01:01.7]} 33... Rg8 {[%clk 0:00:19.6]} 34. Rg4 {[%clk 0:00:59.4]} 34... h5
{[%clk 0:00:16.9]} 35. Rf4 {[%clk 0:00:59.4]} 35... Qc2 {[%clk 0:00:16]} 36. Qg1
{[%clk 0:00:43]} 36... Qe2 {[%clk 0:00:16.2]} 37. Kh1 {[%clk 0:00:40.2]} 37...
Qxe5 {[%clk 0:00:15.7]} 38. Qc1 {[%clk 0:00:39.9]} 38... Rg7 {[%clk 0:00:09.2]}
39. Qd2 {[%clk 0:00:38.9]} 39... Qxc5 {[%clk 0:00:06.4]} 40. Rh4 {[%clk
0:00:37.6]} 40... Nh7 {[%clk 0:00:05.7]} 41. Qd8+ {[%clk 0:00:37.6]} 41... Qf8
{[%clk 0:00:05.9]} 42. Qd4 {[%clk 0:00:35.1]} 42... Qe7 {[%clk 0:00:03.1]} 43.
Rxh5 {[%clk 0:00:33.9]} 43... Kg8 {[%clk 0:00:03.7]} 44. Rc5 {[%clk 0:00:31.9]}
44... Nf8 {[%clk 0:00:02.8]} 45. Rxc6 {[%clk 0:00:31.1]} 45... Qg5 {[%clk
0:00:03.1]} 46. Rc2 {[%clk 0:00:28.6]} 46... a5 {[%clk 0:00:03.1]} 47. Qc3
{[%clk 0:00:26.2]} 47... Qf5 {[%clk 0:00:02.8]} 48. Rd2 {[%clk 0:00:23.5]} 48...
a4 {[%clk 0:00:03.2]} 49. bxa4 {[%clk 0:00:24]} 49... bxa4 {[%clk 0:00:04.1]}
50. Qb4 {[%clk 0:00:24.7]} 50... Qg5 {[%clk 0:00:03.5]} 51. Rc2 {[%clk
0:00:23.2]} 51... Qf5 {[%clk 0:00:03.5]} 52. Rd2 {[%clk 0:00:23.1]} 52... Qg5
{[%clk 0:00:03.7]} 53. Rc2 {[%clk 0:00:23.3]} 53... Qf5 {[%clk 0:00:04]} 54. Rc8
{[%clk 0:00:21.6]} 54... Qg5 {[%clk 0:00:03.8]} 55. Rxf8+ {[%clk 0:00:18.5]}
55... Kh7 {[%clk 0:00:04.1]} 56. Qe4+ {[%clk 0:00:17.8]} 56... Qg6 {[%clk
0:00:04]} 57. Qh4+ {[%clk 0:00:18]} 57... Qh6 {[%clk 0:00:04.6]} 58. Rh8+ {[%clk
0:00:18.4]} 1-0